[Event "Bangabandhu Premier Div League 2023-24"]
[Site "Dhaka"]
[Date "2024.02.10"]
[Round "10.1"]
[White "Mohammad Nubairshah Shaikh"]
[Black "Shawket Bin, Osman Shaon"]
[Result "1-0"]
[ECO "E17"]
[WhiteElo "2428"]
[BlackElo "2030"]
[Annotator "RC"]
[PlyCount "159"]
[EventDate "2024.02.01"]
[EventCountry "BAN"]
[SourceTitle "playchess.com"]
[Source "ChessBase"]
[SourceQuality "1"]
[TimeControl "40/5400+30:1800+30"]

1. Nf3 {[%emt 1:31:00]} Nf6 {[%emt 0:07:39]} 2. g3 {[%emt 0:00:00]} b6 {[%emt 0:01:52]} 3. c4 {[%emt 0:00:00]} Bb7 {[%emt 0:00:21]} 4. Bg2 {[%emt 0:00:00]} e6 {[%emt 0:00:24]} 5. O-O {[%emt 0:00:00]} Be7 {[%emt 0:00:11]} 6. Nc3 {[%emt 0:00:00]} O-O {[%emt 1:23:03]} 7. Re1 {[%emt 0:00:00]} d5 {[%emt 0:00:00]} 8. cxd5 {[%emt 0:00:00]} exd5 {[%emt 0:00:00]} 9. d4 {[%emt 0:04:00]} c5 {[%emt 0:00:00]} 10. Bf4 {[%emt 0:00:00]} Nc6 {[%emt 0:02:00]} 11. Rc1 {[%emt 0:00:00]} Rc8 {[%emt 0:00:30]} 12. Bh3 {[%emt 0:01:30]} Ra8 {[%emt 0:00:30]} 13. Nb5 {[%emt 0:00:00]} Ne8 {[%emt 0:00:30]} 14. Bg2 {[%emt 0:01:00]} a6 {[%emt 0:00:00]} 15. Nc3 {[%emt 0:00:00]} Nf6 {[%emt 0:01:00]} 16. dxc5 {[%emt 0:00:00]} bxc5 {[%emt 0:00:00]} 17. Ne5 {[%emt 0:01:30]} Nd4 {[%emt 0:00:00]} 18. Na4 {[%emt 0:00:30]} Ne6 {[%emt 0:01:30]} 19. Be3 {[%emt 0:00:30]} Qa5 {[%emt 0:00:30]} 20. Qc2 {[%emt 0:00:00]} Rac8 {[%emt 0:00:00]} 21. Nc4 {[%emt 0:01:00]} Qb5 {[%emt 0:01:00]} 22. Nc3 {[%emt 0:00:30]} Qxc4 {[%emt 0:00:00]} 23. Nxd5 {[%emt 0:00:00]} Bxd5 {[%emt 0:00:00]} 24. Qxc4 {[%emt 0:00:00]} Bxc4 {[%emt 0:00:00]} 25. Rxc4 {[%emt 0:00:00]} Rb8 {[%emt 0:00:00]} 26. b3 {[%emt 0:00:00]} Rb4 {[%emt 0:00:00]} 27. Rec1 {[%emt 0:02:30]} Rfb8 {[%emt 0:00:00]} 28. R4c2 {[%emt 0:00:30]} Nd4 {[%emt 0:03:30]} 29. Rb2 {[%emt 0:00:30]} a5 {[%emt 0:00:00]} 30. Bf4 {[%emt 0:00:00]} Rc8 {[%emt 0:01:00]} 31. Bh3 {[%emt 0:01:00]} Re8 {[%emt 0:00:30]} 32. e3 {[%emt 0:00:00]} Ne6 {[%emt 0:00:00]} 33. Be5 {[%emt 0:00:00]} a4 {[%emt 0:00:00]} 34. Bc3 {[%emt 0:01:30]} Rbb8 {[%emt 0:00:00]} 35. bxa4 {[%emt 0:00:00]} Nd5 {[%emt 0:00:00]} 36. Rxb8 {[%emt 0:00:00]} Rxb8 {[%emt 0:00:00]} 37. Be5 {[%emt 0:00:00]} Rb4 {[%emt 0:00:00]} 38. Bg2 {[%emt 0:00:00]} Bf6 {[%emt 0:00:00]} 39. Bxd5 {[%emt 0:00:00]} Bxe5 {[%emt 0:00:00]} 40. Bxe6 {[%emt 0:00:00]} fxe6 {[%emt 0:00:00]} 41. Rxc5 {[%emt 0:33:30]} Bb8 {[%emt 0:01:39]} 42. a5 {[%emt 0:00:00]} Kf7 {[%emt 0:33:51]} 43. a6 {[%emt 0:01:00]} Ra4 {[%emt 0:00:30]} 44. Rb5 {[%emt 0:00:30]} Bd6 {[%emt 0:00:00]} 45. Rb6 {[%emt 0:00:00]} Ke7 {[%emt 0:00:00]} 46. Rb7+ {[%emt 0:00:00]} Kf6 {[%emt 0:00:00]} 47. Rb6 {[%emt 0:00:00]} Bc5 {[%emt 0:02:00]} 48. Rc6 {[%emt 0:00:00]} Ba7 {[%emt 0:00:00]} 49. Kg2 {[%emt 0:00:00]} Rxa2 {[%emt 0:00:00]} 50. Kf3 {[%emt 0:00:00]} Ra4 {[%emt 0:01:30]} 51. g4 {[%emt 0:00:00]} h6 {[%emt 0:00:30]} 52. h4 {[%emt 0:04:00]} Bb8 {[%emt 0:00:30]} 53. Rb6 {[%emt 0:00:00]} Be5 {[%emt 0:00:00]} 54. Rb5 {[%emt 0:01:00]} Ba1 {[%emt 0:01:00]} 55. g5+ {[%emt 0:00:30]} hxg5 {[%emt 0:00:00]} 56. hxg5+ {[%emt 0:00:00]} Ke7 {[%emt 0:01:00]} 57. Rb7+ {[%emt 0:00:00]} Kd6 {[%emt 0:00:00]} 58. a7 {[%emt 0:00:00]} Be5 {[%emt 0:00:00]} 59. Ke2 {[%emt 0:00:00]} Kc6 {[%emt 0:00:00]} 60. Re7 {[%emt 0:00:00]} Kd6 {[%emt 0:00:00]} 61. Rb7 {[%emt 0:00:00]} Kc6 {[%emt 0:00:00]} 62. Re7 {[%emt 0:00:00]} Kd5 {[%emt 0:03:00]} 63. Rd7+ {[%emt 0:00:31]} Ke4 {[%emt 0:00:00]} 64. f3+ {[%emt 0:00:04]} Kf5 {[%emt 0:00:00]} 65. f4 {[%emt 0:00:15]} Ba1 {[%emt 0:01:30]} 66. Kf3 {[%emt 0:04:40]} Ra3 {[%emt 0:00:00]} 67. Rf7+ {[%emt 0:00:00]} Kg6 {[%emt 0:00:00]} 68. Rd7 {[%emt 0:00:00]} e5 {[%emt 0:00:00]} 69. Kg4 {[%emt 0:00:42]} Ra4 {[%emt 0:00:00]} 70. a8=Q {[%emt 0:00:41]} Rxa8 {[%emt 0:00:00]} 71. f5+ {[%emt 0:00:00]} Kh7 {[%emt 0:00:00]} 72. f6 {[%emt 0:01:37]} e4 {[%emt 0:00:00]} 73. Rxg7+ {[%emt 0:00:00]} Kh8 {[%emt 0:00:00]} 74. Re7 {[%emt 0:01:00]} Ra5 {[%emt 0:00:00]} 75. Re8+ {[%emt 0:00:00]} Kh7 {[%emt 0:00:00]} 76. f7 {[%emt 0:00:16]} Bg7 {[%emt 0:00:00]} 77. f8=Q {[%emt 0:01:14]} Bxf8 {[%emt 0:00:00]} 78. Rxf8 {[%emt 0:00:00]} Kg6 {[%emt 0:00:00]} 79. Rf6+ {[%emt 0:00:00]} Kg7 {[%emt 0:00:00]} 80. Re6 {[%emt 0:00:00]} 1-0

[Event "Bangabandhu Premier Div League 2023-24"]
[Site "Dhaka"]
[Date "2024.02.10"]
[Round "10.1"]
[White "Hossain, Enamul"]
[Black "Nasim Hossain, Bhuiyan"]
[Result "1-0"]
[ECO "C00"]
[WhiteElo "2372"]
[BlackElo "1812"]
[Annotator "TA"]
[PlyCount "81"]
[EventDate "2024.02.01"]
[EventCountry "BAN"]
[SourceTitle "playchess.com"]
[Source "ChessBase"]
[SourceQuality "1"]
[TimeControl "40/5400+30:1800+30"]

{[%evp 9,81,0,24,15,18,21,14,10,22,20,19,10,20,23,42,32,46,41,66,66,58,67,66,61,120,121,121,128,176,166,248,80,91,99,104,94,101,106,109,84,176,169,265,259,715,545,514,491,652,633,619,622,581,473,1639,1681,1792,1896,1916,1927,2007,1987,29987,29988,29988,29989,29989,29980,29991,29992,29992,29993,29993,29994]} 1. e4 {[%emt 0:02:20]} e6 {[%emt 0:09:43]} 2. Qe2 {[%emt 0:01:53]} b6 {[%emt 0:01:29]} 3. Nf3 {[%emt 0:00:22]} c5 {[%emt 0:01:22]} 4. g3 {[%emt 0:00:23]} Nc6 {[%emt 0:00:56]} 5. Bg2 {[%emt 0:00:25]} Nge7 {[%emt 0:00:22]} 6. O-O {[%emt 0:03:39]} g6 {[%emt 0:00:26]} 7. c3 {[%emt 0:02:59][%cal Bc2c3,Bc3d4][%mdl 32]} Bg7 {[%emt 0:00:43] [#] Repels d4} 8. d4 $1 {[%emt 0:01:14] The position is equal.} cxd4 {[%emt 0:05:41]} 9. cxd4 {[%emt 0:01:37]} d5 {[%emt 0:00:28]} 10. e5 {[%emt 0:03:56]} O-O {[%emt 0:00:15]} 11. Rd1 {[%emt 0:05:53]} Bb7 {[%emt 0:01:34]} 12. Na3 {[%emt 0:01:20]} a6 {[%emt 0:01:33]} 13. h4 {[%emt 0:04:45]} h5 {[%emt 0:03:45]} 14. Bg5 {[%emt 0:02:33]} Qd7 {[%emt 0:01:01]} 15. Nc2 {[%emt 0:00:40]} Nf5 {[%emt 0:01:23]} 16. Ne3 {[%emt 0:07:12]} Nxe3 {[%emt 0:03:52]} (16... a5 $14) 17. Qxe3 $16 {[%emt 0:00:41]} Ne7 {[%emt 0:01:14]} 18. Qf4 {[%emt 0:04:51]} Nf5 {[%emt 0:05:56]} (18... a5 $16 19. Rd2 Rac8) 19. Bh3 $18 {[%emt 0:00:57]} Rfc8 {[%emt 0:15:24]} (19... Rae8 {might work better.} 20. Re1 Kh7) 20. Ne1 $2 {[%emt 0:05:50]} (20. g4 $18 {is the precise move to win.}) 20... Rc7 {[%emt 0:06:58]} 21. f3 {[%emt 0:08:14]} Bf8 {[%emt 0:08:28]} 22. g4 {[%emt 0:01:44]} Ng7 {[%emt 0:02:20]} 23. Bf6 {[%emt 0:01:10]} Kh7 {[%emt 0:00:35] Repels Qh6+} 24. Rd2 {[%emt 0:04:14] White is more active.} Rc4 {[%emt 0:03:45]} (24... a5 $16 {is a better defense.}) 25. Bf1 {[%emt 0:01:14]} Rc7 {[%emt 0:07:02]} (25... a5 $142 26. Kh2 Ne8) 26. Rg2 {[%emt 0:00:48]} hxg4 $2 {[%emt 0:02:38]} (26... a5 27. Bxg7 Bxg7 28. gxh5 Bh6) 27. fxg4 {[%emt 0:00:56]} Ne8 {[%emt 0:00:21]} 28. Bg5 {[%emt 0:01:04]} f6 {[%emt 0:01:28]} 29. Bxf6 {[%emt 0:02:41]} Nxf6 {[%emt 0:00:24]} 30. exf6 {[%emt 0:00:32]} Qd6 {[%emt 0:02:02]} 31. Nd3 {[%emt 0:01:52][%cal Be1d3,Bd3e5,Be5g6][%mdl 32] [#] Ne5 is the strong threat.} Rac8 {[%emt 0:07:16]} (31... Qxf4 $142 32. Nxf4 Rf7) 32. Ne5 {[%emt 0:00:52]} Bc6 {[%emt 0:02:20]} 33. Qg5 {[%emt 0:01:37]} Be8 {[%emt 0:00:41]} 34. Bd3 {[%emt 0:00:11][%cal Rd3g6]} (34. Bxa6 Bh6 35. Bxc8 Rxc8 $19 (35... Bxg5 $2 {perishes.} 36. hxg5 Kg8 37. Rh2 $18)) 34... Kh8 {[%emt 0:02:59]} 35. Bxg6 {[%emt 0:00:49]} Bxg6 {[%emt 0:00:50]} 36. Nxg6+ {[%emt 0:00:08] White mates.} Kh7 {[%emt 0:00:32]} 37. Qh5+ {[%emt 0:00:46]} Bh6 {[%emt 0:00:37]} 38. Ne5 {[%emt 0:01:09]} Rc1+ {[%emt 0:00:22]} 39. Rxc1 {[%emt 0:00:19]} Rxc1+ {[%emt 0:00:13]} 40. Kh2 {[%emt 0:00:14]} Qf8 {[%emt 0:00:26]} 41. g5 {[%emt 0:31:07] Weighted Error Value: White=0.20 (precise) /Black=0.38.  Missed win:     	White=1     	---        Mistake:       	---       	Black=6      Inaccurate:     	---       	Black=1      OK:         	White=11    	Black=7      Best:        	White=2     	Black=1} 1-0

[Event "Bangabandhu Premier Div League 2023-24"]
[Site "Dhaka"]
[Date "2024.02.10"]
[Round "10.2"]
[White "Kushagra Mohan"]
[Black "Mayank Chakraborty"]
[Result "1/2-1/2"]
[ECO "C07"]
[WhiteElo "2374"]
[BlackElo "2409"]
[Annotator "TA"]
[PlyCount "60"]
[EventDate "2024.02.01"]
[EventCountry "BAN"]
[SourceTitle "playchess.com"]
[Source "ChessBase"]
[SourceQuality "1"]
[TimeControl "40/5400+30:1800+30"]

{[%evp 10,60,15,12,18,14,13,18,27,3,12,-7,7,10,6,6,16,9,10,0,0,7,0,7,0,22,22,8,16,0,0,0,0,0,0,0,0,0,0,0,0,0,0,0,0,0,0,0,0,0,0,0,0]} 1. e4 {[%emt 0:02:30]} e6 {[%emt 0:00:01]} 2. d4 {[%emt 0:00:08]} d5 {[%emt 0:00:02]} 3. Nd2 {[%emt 0:00:07]} c5 {[%emt 0:00:03]} 4. exd5 {[%emt 0:00:11]} Qxd5 {[%emt 0:00:02]} 5. Ngf3 {[%emt 0:00:07]} cxd4 {[%emt 0:00:04]} 6. Bc4 {[%emt 0:00:07]} Qd7 {[%emt 0:00:04]} 7. O-O {[%emt 0:00:15][%mdl 1024] White has compensation.} Nc6 {[%emt 0:00:02]} 8. Nb3 {[%emt 0:00:11][%cal Rb3d4]} a6 {[%emt 0:00:03]} 9. a4 {[%emt 0:00:08][%cal Od1e2]} Nf6 {[%emt 0:00:03] The position is equal.} 10. Qe2 {[%emt 0:00:04]} Bd6 {[%emt 0:00:04]} 11. Rd1 {[%emt 0:00:11]} e5 {[%emt 0:00:04]} 12. Nbxd4 {[%emt 0:00:05]} Nxd4 {[%emt 0:00:04]} 13. Rxd4 {[%emt 1:32:56]} Qe7 {[%emt 1:36:24] [#]} 14. Rxd6 {[%emt 0:00:00]} Qxd6 {[%emt 0:00:00]} 15. b3 {[%emt 0:00:00][%cal Oc1a3] Strongly threatening Ba3!} e4 {[%emt 0:00:00] aiming for ...Be6.} 16. Ba3 {[%emt 0:00:00]} Qf4 {[%emt 0:00:00]} 17. Qe1 {[%emt 0:00:00][%cal Oe1a5] Hoping for Qa5!} Be6 {[%emt 0:00:00] [#] White must now prevent ...Bxc4.} 18. Qa5 $1 {[%emt 0:00:00][%cal Oa5c5] Qc5! is the strong threat.} Rd8 $1 {[%emt 0:00:00] [#]} (18... exf3 $2 {too greedy.} 19. Qc5 Kd8 20. Qe7+ Kc8 21. Bxe6+ (21. Bd6 Qxd6 22. Qxd6 Bxc4 $18) 21... fxe6 22. Bd6 $18 (22. Qxg7 $2 Rg8 $19) (22. Qxg7 $2 Rg8 $19)) 19. Qc5 $1 {[%emt 0:00:00]} Nd5 {[%emt 0:00:00] Against Qe7+} ({Avoid the trap} 19... Rd7 $2 20. Qc8+ Rd8 21. Qxb7 $18) 20. Bxd5 {[%emt 0:00:00]} Qf6 {[%emt 0:00:00] Repels Qe7+} 21. Bc6+ $1 {[%emt 0:00:00]} bxc6 {[%emt 0:00:00]} 22. Qxc6+ {[%emt 0:00:00]} Rd7 {[%emt 0:00:00]} 23. Qa8+ {[%emt 0:00:00]} Rd8 $1 {[%emt 0:00:00]} 24. Qc6+ {[%emt 0:00:00]} Rd7 {[%emt 0:00:00]} 25. Qa8+ {[%emt 0:00:00]} Rd8 $1 {[%emt 0:00:00]} 26. Qc6+ {[%emt 0:00:00]} Rd7 {[%emt 0:00:00]} 27. Qa8+ {[%emt 0:00:00]} Rd8 $1 {[%emt 0:07:00]} 28. Qc6+ Rd7 29. Qa8+ Rd8 $1 30. Qc6+ Rd7 {An uneventful encounter.   Weighted Error Value: White=0.03 (flawless) /Black=0.01 (flawless) .  OK:         	White=11    	Black=6      Best:        	White=5     	Black=7      Strong:       	White=2     	Black=5} 1/2-1/2

[Event "Bangabandhu Premier Div League 2023-24"]
[Site "Dhaka"]
[Date "2024.02.10"]
[Round "10.2"]
[White "Mrittika Mallick"]
[Black "Chigaev, Maksim"]
[Result "1/2-1/2"]
[ECO "B36"]
[WhiteElo "1859"]
[BlackElo "2622"]
[Annotator "TA"]
[PlyCount "136"]
[EventDate "2024.02.01"]
[EventCountry "BAN"]
[SourceTitle "playchess.com"]
[Source "ChessBase"]
[SourceQuality "1"]
[TimeControl "40/5400+30:1800+30"]

{[%evp 17,136,33,23,26,48,8,30,19,31,35,32,4,35,34,49,39,38,21,10,16,21,7,32,27,47,8,11,14,8,22,51,64,45,45,76,68,74,75,77,76,79,56,51,36,63,56,38,34,35,8,8,8,10,10,12,0,0,0,0,0,0,0,0,0,0,0,0,0,0,0,0,0,0,0,0,0,0,0,0,0,0,0,0,0,0,0,0,0,0,0,0,0,0,0,0,0,0,0,0,0,0,0,0,0,0,0,0,0,0,0,0,0,0,0,0,0,0,0,0,0,0]} 1. e4 {[%emt 0:00:03]} c5 {[%emt 0:00:20]} 2. Nf3 {[%emt 0:00:07]} g6 {[%emt 0:00:07]} 3. c4 {[%emt 0:00:18]} Nc6 {[%emt 0:00:24]} 4. d4 {[%emt 0:00:12]} cxd4 {[%emt 0:00:11]} 5. Nxd4 {[%emt 0:00:05]} Nf6 {[%emt 0:00:12]} 6. Nc3 {[%emt 0:00:09]} d6 {[%emt 0:00:07]} 7. Be2 {[%emt 0:01:13]} Nxd4 {[%emt 0:00:10]} 8. Qxd4 {[%emt 0:00:06]} Bg7 {[%emt 0:00:07]} 9. O-O {[%emt 0:00:10]} O-O {[%emt 0:00:08]} 10. Qd3 {[%emt 0:01:44]} a5 {[%emt 0:05:14]} 11. h3 {[%emt 0:02:30]} a4 {[%emt 0:01:03][%cal Oa4a3]} 12. Be3 {[%emt 0:00:33] White has an edge.} Qa5 {[%emt 0:01:34]} 13. Rab1 {[%emt 0:03:17]} Be6 {[%emt 0:11:14]} 14. Nd5 {[%emt 0:05:47]} Bxd5 {[%emt 0:04:18]} 15. exd5 {[%emt 0:02:10]} Nd7 {[%emt 0:01:33]} 16. Rfc1 {[%emt 0:11:04]} Rfc8 {[%emt 0:07:37]} 17. b4 {[%emt 0:11:36]} axb3 {[%emt 0:00:35]} 18. axb3 {[%emt 0:00:33]} Qb4 {[%emt 0:12:46]} 19. Bd2 {[%emt 0:04:41]} Qa3 {[%emt 0:00:13]} 20. Qe3 {[%emt 0:03:00]} Nc5 {[%emt 0:13:50]} 21. b4 {[%emt 0:01:39]} (21. Qxe7 $2 {too greedy.} Qa2 (21... Nxb3 $2 22. Rc3 $19) (21... Re8 22. Qxd6 Rxe2 23. Be3 $19) 22. Be3 (22. Qe3 $2 Re8 $19) 22... Qxe2 $19) 21... Qxe3 {[%emt 0:00:11]} 22. Bxe3 {[%emt 0:00:13]} Ne4 {[%emt 0:39:36]} 23. Bd3 {[%emt 0:05:28]} f5 {[%emt 0:00:00]} 24. Bxe4 {[%emt 0:00:58]} fxe4 {[%emt 0:00:00]} 25. c5 $36 {[%emt 0:00:35][%mdl 2048] White is more active.} Kf7 {[%emt 0:00:00]} 26. Rc4 {[%emt 0:00:57]} Ra3 {[%emt 0:00:00]} 27. Rxe4 {[%emt 0:01:28]} Rd3 {[%emt 0:00:00]} 28. Bg5 {[%emt 0:05:41]} Rxd5 {[%emt 0:00:00]} 29. Bxe7 {[%emt 0:00:55] White is more active.} (29. Rxe7+ {looks sharper.} Kf8 30. cxd6 Rxg5 31. d7) 29... Re8 {[%emt 0:00:00]} 30. cxd6 {[%emt 0:00:43]} Rxd6 {[%emt 0:00:00]} 31. Bxd6 {[%emt 0:00:58]} Rxe4 $14 {[%emt 0:00:00][%mdl 4096] Endgame. KRB-KRB} 32. Bc5 {[%emt 0:02:23]} Bc3 {[%emt 0:02:50]} 33. Rb3 {[%emt 0:03:32]} Rc4 {[%emt 0:01:53] The position is equal.} 34. Kf1 {[%emt 0:00:31]} Ke6 {[%emt 0:00:11]} 35. Ke2 {[%emt 0:02:45] [#] Strongly threatening Kd3.} Kd5 {[%emt 0:01:36]} 36. Kd3 {[%emt 0:00:26]} Bd4 {[%emt 0:00:00]} 37. Bxd4 {[%emt 0:00:20]} Rxd4+ $11 {[%emt 0:00:00] KR-KR} 38. Ke3 {[%emt 0:00:43] And now Rd3 would win.} Re4+ {[%emt 0:00:00]} 39. Kd3 {[%emt 0:00:56]} Rd4+ {[%emt 0:00:00]} 40. Ke3 {[%emt 0:00:16] [#] Hoping for Rd3.} Re4+ {[%emt 0:01:38]} 41. Kd3 {[%emt 0:30:36]} b5 {[%emt 0:30:27]} 42. Rb1 {[%emt 0:01:19]} Rc4 {[%emt 0:00:00]} 43. g3 {[%emt 0:00:00]} g5 {[%emt 0:00:00]} 44. Rb2 {[%emt 0:00:00]} h5 {[%emt 0:00:00]} 45. Rb1 {[%emt 0:00:00]} h4 {[%emt 0:00:00]} 46. f3 {[%emt 0:00:00]} Ke5 {[%emt 0:00:00]} 47. Re1+ {[%emt 0:00:00]} Kf6 {[%emt 0:00:00]} 48. gxh4 {[%emt 0:00:00]} Rxh4 {[%emt 0:00:00]} 49. Re4 {[%emt 0:00:00] White threatens Rxh4 and mate.} Rxh3 {[%emt 0:00:00]} 50. Ke3 {[%emt 0:00:00]} Rh1 {[%emt 0:00:00]} 51. Kf2 {[%emt 0:00:00]} Rh4 {[%emt 0:00:00] ( -> ...Rxe4)} 52. Ke3 {[%emt 0:01:04]} Kf5 {[%emt 0:00:00]} 53. Re8 {[%emt 0:01:16] Inhibits Rxe4+.} Rxb4 {[%emt 0:00:00]} 54. Rf8+ {[%emt 0:00:22]} Ke5 {[%emt 0:00:00]} 55. Re8+ {[%emt 0:01:41]} Kf6 {[%emt 0:00:00]} 56. Rf8+ {[%emt 0:01:16]} Kg7 {[%emt 0:00:00]} 57. Rf5 {[%emt 0:01:29]} Kg6 {[%emt 0:00:00]} 58. Rf8 {[%emt 0:00:08]} Rh4 {[%emt 0:04:12]} 59. f4 {[%emt 0:02:54]} g4 {[%emt 0:00:07]} 60. Rb8 {[%emt 0:02:06]} Rh5 {[%emt 0:01:19]} 61. Rb6+ {[%emt 0:00:11]} Kf7 {[%emt 0:00:28]} 62. Kf2 {[%emt 0:00:43]} Rh3 {[%emt 0:00:08]} 63. Rxb5 {[%emt 0:00:21]} Rf3+ {[%emt 0:00:04]} 64. Kg2 {[%emt 0:00:07]} Rxf4 {[%emt 0:00:03]} 65. Kg3 {[%emt 0:00:07]} Re4 {[%emt 0:00:05]} 66. Rg5 {[%emt 0:00:05]} Kf6 {[%emt 0:00:03]} 67. Rxg4 {[%emt 0:00:05]} Rxg4+ {[%emt 0:00:04]} 68. Kxg4 {[%emt 0:00:01]} Ke5 {[%emt 0:07:52] Weighted Error Value: White=0.05 (flawless) /Black=0.06 (flawless) .  Inaccurate:     	White=4     	Black=4      OK:         	White=28    	Black=22     Best:        	White=2     	Black=1} 1/2-1/2

[Event "Bangabandhu Premier Div League 2023-24"]
[Site "Dhaka"]
[Date "2024.02.10"]
[Round "10.3"]
[White "Iniyan, Pa"]
[Black "Tanvir, Alam"]
[Result "1-0"]
[ECO "D36"]
[WhiteElo "2515"]
[BlackElo "1836"]
[Annotator "TA"]
[PlyCount "65"]
[EventDate "2024.02.01"]
[EventCountry "BAN"]
[SourceTitle "playchess.com"]
[Source "ChessBase"]
[SourceQuality "1"]
[TimeControl "40/5400+30:1800+30"]

{[%evp 21,65,25,62,56,108,94,114,95,136,142,125,133,142,122,173,167,186,189,190,190,179,173,251,253,258,267,272,196,190,170,378,391,439,459,512,461,436,416,454,438,404,398,737,717,29981,29982]} 1. d4 {[%emt 0:01:00]} Nf6 {[%emt 0:28:29]} 2. c4 {[%emt 0:00:10]} e6 {[%emt 0:00:05]} 3. Nc3 {[%emt 0:00:29]} d5 {[%emt 0:00:42]} 4. Bg5 {[%emt 0:00:16]} c6 {[%emt 0:00:09]} 5. e3 {[%emt 0:00:07]} Nbd7 {[%emt 0:00:04]} 6. cxd5 {[%emt 0:00:36]} exd5 {[%emt 0:00:14]} 7. Bd3 {[%emt 0:00:09]} Bd6 {[%emt 0:00:08]} 8. Nf3 {[%emt 0:00:31]} O-O {[%emt 0:00:13]} 9. O-O {[%emt 0:00:20]} h6 {[%emt 0:00:07]} 10. Bh4 {[%emt 0:00:47]} Re8 {[%emt 0:00:34]} 11. Qc2 {[%emt 0:00:50]} Qe7 {[%emt 0:01:15]} 12. Rae1 {[%emt 0:01:15][%cal Ba1e1,Be1e2,Be2f2][%mdl 32] White is more active.} g5 {[%emt 0:00:09]} (12... Qf8 $14) 13. Bg3 $16 {[%emt 0:00:10] Hoping for e4.} Bxg3 {[%emt 0:00:08]} 14. fxg3 {[%emt 0:01:01] White is better.} Ne4 {[%emt 0:01:29]} 15. Bxe4 {[%emt 0:00:29]} dxe4 {[%emt 0:00:35]} 16. Nd2 {[%emt 0:00:05][%cal Bf3d2,Bd2e4,Be4c3,Bc3d5][%mdl 32]} Nf6 {[%emt 0:01:16]} 17. Re2 {[%emt 0:00:16]} Nd5 {[%emt 0:01:54]} (17... Be6 $16 {was worth a try.} 18. Ndxe4 (18. Ncxe4 Nd5 $16) 18... Nxe4 19. Nxe4 (19. Qxe4 $2 Bc4 $17) 19... Bf5 20. Rxf5 Qxe4) 18. Ndxe4 $18 {[%emt 0:01:10] [#] aiming for Nxd5.} (18. Qxe4 $2 Nxc3 19. bxc3 Qxe4 $19) 18... f5 {[%emt 0:03:04]} 19. Nxd5 {[%emt 0:00:20]} cxd5 {[%emt 0:00:08]} 20. Nc3 {[%emt 0:00:10]} Be6 {[%emt 0:00:27]} 21. Ref2 {[%emt 0:05:15]} Rac8 {[%emt 0:00:39] [#]} (21... g4 $142 22. Ne2 Rac8) 22. g4 $1 {[%emt 0:00:12][%mdl 512]} b5 {[%emt 0:03:02][%cal Bb7b5,Bb5b4][%mdl 32] White must now prevent ...b4.} (22... Rc4 23. Qd3) 23. a3 {[%emt 0:02:03]} (23. gxf5 Bf7 $18) 23... a5 {[%emt 0:00:35]} 24. Qb3 {[%emt 0:01:34]} (24. gxf5 Bf7 $18) 24... b4 {[%emt 0:01:36]} 25. Nxd5 {[%emt 0:01:09]} Qf7 {[%emt 0:01:27]} (25... Qd8) 26. Rxf5 {[%emt 0:00:22]} Bxf5 {[%emt 0:00:14]} 27. Nf6+ {[%emt 0:01:24]} (27. gxf5 Kh8 28. f6 (28. axb4 $2 Rcd8 $19) 28... a4 $11) (27. Rxf5 Qe6 28. Re5 (28. axb4 a4 $18) 28... Rc1+ 29. Kf2 Rf8+ 30. Kg3 Qd6 31. Ne7+ (31. Nxb4+ Kh8 $18) (31. axb4 Kg7 $18) 31... Kh8 32. axb4 axb4) 27... Kg7 {[%emt 0:00:14][%cal Bg8g7,Bg7f7,Bf7e8][%mdl 32]} 28. Qxf7+ {[%emt 0:00:39]} Kxf7 {[%emt 0:00:17]} 29. Nxe8 {[%emt 0:00:03]} (29. Rxf5 Rc1+ 30. Kf2 Ra8 $15) 29... Kxe8 {[%emt 0:00:15]} 30. Rxf5 {[%emt 0:00:14]} (30. gxf5 Rc2 $11) 30... bxa3 {[%emt 0:00:03]} 31. bxa3 {[%emt 0:00:08]} Rc3 $2 {[%emt 0:00:14]} (31... a4 32. Rf6 Rc3) 32. Rxa5 {[%emt 0:00:04]} Rxe3 {[%emt 0:00:10]} 33. Re5+ {[%emt 0:00:03] Black did not feel at home in the position after the opening.   Weighted Error Value: White=0.11 (very precise) /Black=0.80.  Mistake:       	---       	Black=5      Inaccurate:     	---       	Black=2      OK:         	White=13    	Black=3      Best:        	White=2     	Black=1} 1-0